fUSD/lending_fUSD_20260329
["ID","MTS","AMOUNT","RATE_DAILY","PERIOD"]
[419025721,1774776633584,-209.68172989,0.00013273,2]
[419025722,1774776633594,-500.0,0.00013273,2]
[419025723,1774776633604,-166.66,0.00013343,2]
[419025724,1774776633614,-3240.0,0.00013425,2]
[419025725,1774776633624,-5782.06121419,0.00013465,2]
[419025738,1774776640761,-1500000.0,0.00013161,2]
[419025739,1774776640770,-4187.07893405,0.00013465,2]
[419025740,1774776640780,-6626.85673631,0.00013465,2]
[419025741,1774776640789,-298.47,0.00013492,2]
[419025742,1774776640798,-500.0,0.00013534,2]
[419025743,1774776640807,-443.68,0.00013534,2]
[419025744,1774776640816,-1014.84902254,0.00013552,2]
[419025745,1774776640826,-1014.84902254,0.00013552,2]
[419025746,1774776640836,-165.04,0.00013588,2]
[419025747,1774776640845,-166.66,0.00013613,2]
[419025748,1774776640854,-532.88981571,0.00013618,2]
[419025749,1774776640863,-541.09,0.00013698,2]
[419025750,1774776640872,-500.0,0.00013698,2]
[419025751,1774776640881,-500.0,0.00013698,2]
[419025752,1774776640890,-500.0,0.00013698,2]
[419025753,1774776640900,-500.0,0.00013698,2]
[419025754,1774776640909,-500.0,0.00013698,2]
[419025755,1774776640918,-532.16065142,0.00013698,2]
[419025756,1774776640928,-500.0,0.00013698,2]
[419025757,1774776640937,-500.0,0.00013698,2]
[419025758,1774776640947,-161.59374025,0.00013698,2]
[419025759,1774776640956,-1443.24,0.00013698,2]
[419025760,1774776640966,-1443.24,0.00013698,2]
[419025761,1774776640975,-1443.24,0.00013698,2]
[419025762,1774776640985,-1443.24,0.00013698,2]
[419025763,1774776640994,-1443.24,0.00013698,2]
[419025764,1774776641005,-1443.24,0.00013698,2]
[419025765,1774776641014,-150.0,0.00013699,2]
[419025766,1774776641023,-150.0,0.00013699,2]
[419025767,1774776641033,-188.62058068,0.00013699,2]
[419025768,1774776641043,-334.25,0.000137,2]
[419025769,1774776641053,-9969.14014824,0.0001377,2]
[419025770,1774776641062,-6626.85673631,0.0001377,2]
[419025771,1774776641072,-443.68,0.00013808,2]
[419025772,1774776641081,-1000.0,0.00013821,2]
[419025773,1774776641091,-1000.0,0.00013821,2]
[419025774,1774776641100,-1000.0,0.00013821,2]
[419025775,1774776641110,-1000.0,0.00013821,2]
[419025776,1774776641119,-499.72769898,0.00013821,2]
[419025777,1774776641128,-1000.0,0.00013821,2]
[419025778,1774776641139,-500.0,0.00013821,2]
[419025779,1774776641148,-166.66,0.00013883,2]
[419025780,1774776641157,-435.36,0.000139,2]
[419025781,1774776641167,-1014.84902254,0.00013944,2]
[419025782,1774776641177,-1014.84902254,0.00013944,2]
[419025783,1774776641187,-1443.24,0.00013999,2]
[419025784,1774776641196,-48854.80635756,0.00014,2]
[419025785,1774776641206,-513.0,0.00014,2]
[419025786,1774776641215,-532.88981571,0.00014074,2]
[419025787,1774776641225,-9969.14014824,0.00014074,2]
[419025788,1774776641235,-6626.85673631,0.00014074,2]
[419025789,1774776641244,-443.68,0.00014082,2]
[419025790,1774776641254,-60000.0,0.00014115,2]
[419025791,1774776641264,-166.66,0.00014152,2]
[419025792,1774776641273,-255.0,0.00014265,2]
[419025793,1774776641283,-1680.0,0.00014284,2]
[419025794,1774776641293,-182.7824,0.000143,2]
[419025795,1774776641303,-1014.84902254,0.00014335,2]
[419025796,1774776641313,-443.71222207,0.00014356,2]
[419025797,1774776641323,-959.8630956,0.00014364,2]
[419025798,1774776641332,-160.0,0.00014364,2]
[419025799,1774776641343,-1500.0,0.00014368,2]
[419025800,1774776641353,-1500.0,0.00014368,2]
[419025801,1774776641362,-745.04491428,0.00014368,2]
[419025802,1774776641371,-1500.0,0.00014368,2]
[419025803,1774776641381,-9969.14014824,0.00014378,2]
[419025804,1774776641391,-6626.85673631,0.00014378,2]
[419025805,1774776641400,-150.99,0.00014504,2]
[419025806,1774776641410,-532.88981571,0.00014531,2]
[419025807,1774776641419,-231.09519386,0.00014531,2]
[419025808,1774776641429,-1262.0,0.00014562,2]
[419025809,1774776641439,-925.0,0.00014562,2]
[419025810,1774776641448,-1216.0,0.00014562,2]
[419025811,1774776641458,-1045.0,0.00014562,2]
[419025812,1774776641467,-3518.0,0.00014562,2]
[419025813,1774776641476,-2000.0,0.00014601,2]
[419025814,1774776641597,-9969.14014824,0.00014683,2]
[419025815,1774776641607,-6626.85673631,0.00014683,2]
[419025816,1774776641616,-500.0,0.00014712,2]
[419025817,1774776641626,-1104.78,0.00014792,2]
[419025818,1774776641635,-500.0,0.00014875,2]
[419025819,1774776641645,-500.0,0.00014875,2]
[419025820,1774776641654,-500.0,0.00014875,2]
[419025821,1774776641663,-500.0,0.00014875,2]
[419025822,1774776641672,-285.70561794,0.00014875,2]
[419025823,1774776641682,-403.83679365,0.00014877,2]
[419025824,1774776641691,-500.0,0.00014877,2]
[419025825,1774776641700,-172.16887983,0.000149,2]
[419025826,1774776641711,-172.16887982,0.000149,2]
[419025827,1774776641720,-2009.58099597,0.00014916,2]
[419025828,1774776641730,-2000.0,0.00014916,2]
[419025829,1774776641739,-2000.0,0.00014916,2]
[419025830,1774776641749,-532.88981571,0.00014987,2]
[419025831,1774776641758,-9969.14014824,0.00014987,2]
[419025832,1774776641768,-6626.85673631,0.00014987,2]
[419025833,1774776641778,-500.0,0.00015,2]
[419025834,1774776641788,-500.0,0.00015,2]
[419025835,1774776641797,-500.0,0.00015,2]
[419025836,1774776641807,-500.0,0.00015,2]
[419025837,1774776641817,-500.0,0.00015,2]
[419025838,1774776641826,-500.0,0.00015,2]
[419025839,1774776641837,-500.0,0.00015,2]
[419025840,1774776641847,-500.0,0.00015,2]
[419025841,1774776641856,-500.0,0.00015,2]
[419025842,1774776641865,-500.0,0.00015,2]
[419025843,1774776641874,-500.0,0.00015,2]
[419025844,1774776641884,-500.0,0.00015,2]
[419025845,1774776641893,-500.0,0.00015,2]
[419025846,1774776641902,-500.0,0.00015,2]
[419025847,1774776641912,-500.0,0.00015,2]
[419025848,1774776641921,-500.0,0.00015,2]
[419025849,1774776641930,-500.0,0.00015,2]
[419025850,1774776641939,-500.0,0.00015,2]
[419025851,1774776641948,-500.0,0.00015,2]
[419025852,1774776641958,-500.0,0.00015,2]
[419025853,1774776641968,-500.0,0.00015,2]
[419025854,1774776641977,-500.0,0.00015,2]
[419025855,1774776641986,-500.0,0.00015,2]
[419025856,1774776641996,-500.0,0.00015,2]
[419025857,1774776642006,-500.0,0.00015,2]
[419025858,1774776642015,-500.0,0.00015,2]
[419025859,1774776642024,-500.0,0.00015,2]
[419025860,1774776642033,-500.0,0.00015,2]
[419025861,1774776642043,-500.0,0.00015,2]
[419025862,1774776642052,-500.0,0.00015,2]
[419025863,1774776642061,-500.0,0.00015,2]
[419025864,1774776642071,-500.0,0.00015,2]
[419025865,1774776642080,-500.0,0.00015,2]
[419025866,1774776642090,-500.0,0.00015,2]
[419025867,1774776642099,-500.0,0.00015,2]
[419025868,1774776642108,-192.11,0.00015,2]
[419025869,1774776642117,-500.0,0.00015,2]
[419025870,1774776642126,-500.0,0.00015,2]
[419025871,1774776642136,-500.0,0.00015,2]
[419025872,1774776642146,-500.0,0.00015,2]
[419025873,1774776642155,-500.0,0.00015,2]
[419025874,1774776642164,-500.0,0.00015,2]
[419025875,1774776642173,-500.0,0.00015,2]
[419025876,1774776642182,-500.0,0.00015,2]
[419025877,1774776642191,-500.0,0.00015,2]
[419025878,1774776642200,-500.0,0.00015,2]
[419025879,1774776642210,-500.0,0.00015,2]
[419025880,1774776642219,-420.12,0.00015,2]
[419025881,1774776642228,-500.0,0.00015,2]
[419025882,1774776642238,-500.0,0.00015,2]
[419025883,1774776642247,-500.0,0.00015,2]
[419025884,1774776642256,-500.0,0.00015,2]
[419025885,1774776642265,-300.0,0.00015,2]
[419025886,1774776642275,-7093.2976499,0.00015,7]
[419025887,1774776642284,-991.577344,0.000152,2]
[419025888,1774776642294,-2012.0,0.00015223,5]
[419025889,1774776642303,-1611.0,0.00015223,5]
[419025890,1774776642312,-154.53434814,0.00015271,2]
[419025891,1774776642322,-9969.14014824,0.00015291,2]
[419025892,1774776642331,-6626.85673631,0.00015291,2]
[419025893,1774776642340,-250.0,0.00015301,2]
[419025894,1774776642349,-2000.0,0.000154,2]
[419025895,1774776642358,-1000.0,0.00015423,2]
[419025896,1774776642368,-1000.0,0.00015423,2]
[419025897,1774776642377,-502.79991996,0.00015423,2]
[419025898,1774776642387,-1000.0,0.00015425,2]
[419025899,1774776642396,-532.88981571,0.00015444,2]
[419025900,1774776642405,-433.0,0.00015463,2]
[419025901,1774776642414,-2500.0,0.00015464,2]
[419025902,1774776642424,-2500.0,0.00015464,2]
[419025903,1774776642434,-222.7295,0.000155,2]
[419025904,1774776642443,-4000.0,0.00015507,2]
[419025905,1774776642453,-724.83675979,0.00015548,2]
[419025906,1774776642462,-1000.0,0.00015548,2]
[419025907,1774776642471,-1000.0,0.00015548,2]
[419025908,1774776642481,-9969.14014824,0.00015596,2]
[419025909,1774776642490,-6626.85673631,0.00015596,2]
[419025910,1774776642500,-312.0,0.000156,2]
[419025911,1774776642509,-2000.0,0.000156,2]
[419025912,1774776642519,-1443.24,0.00015667,2]
[419025913,1774776642529,-2130.0,0.00015668,2]
[419025914,1774776642539,-2130.0,0.00015674,2]
[419025915,1774776642548,-3047.88111723,0.0001568,2]
[419025916,1774776642558,-2351.0,0.00015712,2]
[419025917,1774776642567,-204.0,0.0001573,2]
[419025918,1774776642576,-275.0,0.00015769,2]
[419025919,1774776642586,-204.0,0.00015839,2]
[419025920,1774776642595,-2000.0,0.0001584,2]
[419025921,1774776642604,-2000.0,0.0001584,2]
[419025922,1774776642614,-2000.0,0.0001585,2]
[419025923,1774776642623,-2130.0,0.00015854,2]
[419025924,1774776642632,-227.70167578,0.0001586,2]
[419025925,1774776642642,-683.0,0.00015871,2]
[419025926,1774776642651,-200.0,0.00015871,2]
[419025927,1774776642661,-200.0,0.00015872,2]
[419025928,1774776642670,-419.12397739,0.00015893,2]
[419025929,1774776642679,-157.91692302,0.00015893,2]
[419025930,1774776642688,-324.30457146,0.00015893,2]
[419025931,1774776642698,-4000.0,0.00015895,2]
[419025932,1774776642707,-419.12397738,0.00015897,2]
[419025933,1774776642716,-324.30457146,0.00015897,2]
[419025934,1774776642727,-334.25,0.000159,2]
[419025935,1774776642736,-150.0,0.000159,2]
[419025936,1774776642745,-150.0,0.000159,2]
[419025937,1774776642755,-1495.80960394,0.000159,2]
[419025938,1774776642764,-176.43732047,0.000159,2]
[419025939,1774776642772,-532.88981571,0.000159,2]
[419025940,1774776642782,-231.09519386,0.000159,2]
[419025941,1774776642792,-9969.14014824,0.000159,2]
[419025942,1774776642801,-6626.85673631,0.000159,2]
[419025943,1774776642811,-419.12397738,0.000159,2]
[419025944,1774776642820,-324.30457146,0.000159,2]
[419025945,1774776642829,-2130.0,0.000159,2]
[419025946,1774776642838,-683.0,0.00015901,2]
[419025947,1774776642847,-2139.47157294,0.00015956,2]
[419025948,1774776642857,-1968.33862778,0.00015956,2]
[419025949,1774776642866,-5000.0,0.0001596,2]
[419025950,1774776642875,-700.0,0.0001597,2]
[419025951,1774776642884,-700.0,0.0001597,2]
[419025952,1774776642894,-854.65118905,0.0001597,2]
[419025953,1774776642903,-1500.0,0.00015971,2]
[419025954,1774776642912,-1500.0,0.00015971,2]
[419025955,1774776642921,-166.0,0.00015973,2]
[419025956,1774776642930,-500.0,0.00015973,2]
[419025957,1774776642939,-500.0,0.00015973,2]
[419025958,1774776642948,-500.0,0.00015973,2]
[419025959,1774776642958,-500.0,0.00015973,2]
[419025960,1774776642967,-395.74377257,0.00015973,2]
[419025961,1774776642977,-609.23348249,0.00015973,2]
[419025962,1774776642986,-500.0,0.00015973,2]
[419025963,1774776642995,-500.0,0.00015973,2]
[419025964,1774776643004,-500.0,0.00015973,2]
[419025965,1774776643015,-500.0,0.00015973,2]
[419025966,1774776643024,-501.14424675,0.00015973,2]
[419025967,1774776643034,-599.64507648,0.00015973,2]
[419025968,1774776643043,-500.0,0.00015973,2]
[419025969,1774776643054,-502.54797101,0.00015973,2]
[419025970,1774776643064,-500.0,0.00015973,2]
[419025971,1774776643074,-500.0,0.00015973,2]
[419025972,1774776643083,-500.0,0.00015973,2]
[419025973,1774776643093,-500.0,0.00015973,2]
[419025974,1774776643102,-500.0,0.00015973,2]
[419025975,1774776643112,-500.0,0.00015973,2]
[419025976,1774776643121,-500.0,0.00015973,2]
[419025977,1774776643130,-500.0,0.00015973,2]
[419025978,1774776643140,-1500.0,0.00015973,2]
[419025979,1774776643150,-321.45097399,0.00015973,2]
[419025980,1774776643160,-204.55546462,0.0001599,2]
[419025981,1774776643170,-1443.24,0.00015992,2]
[419025982,1774776643180,-1443.24,0.00015992,2]
[419025983,1774776643189,-1443.24,0.00015992,2]
[419025984,1774776643199,-612861.1502305,0.00015993,2]
[419025985,1774776643210,-3949.7694202,0.00015993,2]
[419025986,1774776643220,-52681.4800256,0.00015993,2]
[419025987,1774776643230,-9511.459892,0.00015993,2]
[419025988,1774776643240,-151.0,0.00015997,2]
[419025989,1774776643249,-151.0,0.00015997,2]
[419025990,1774776643259,-1079.3194623,0.00015999,5]
[419025991,1774776643269,-1079.3194623,0.00015999,5]
[419025992,1774776643280,-1079.3194623,0.00015999,5]
[419025993,1774776643289,-1079.3194623,0.00015999,5]
[419025994,1774776643299,-1443.24,0.00015999,2]
[419025995,1774776643309,-1443.24,0.00015999,2]
[419025996,1774776643318,-1443.24,0.00015999,2]
[419025997,1774776643328,-1443.24,0.00015999,2]
[419025998,1774776643337,-1443.24,0.00015999,2]
[419025999,1774776643346,-1443.24,0.00015999,2]
[419026000,1774776643356,-1443.24,0.00015999,2]
[419026001,1774776643366,-1443.24,0.00015999,2]
[419026002,1774776643376,-1443.24,0.00015999,2]
[419026003,1774776643385,-1443.24,0.00015999,2]
[419026004,1774776643394,-1443.24,0.00015999,2]
[419026005,1774776643404,-1443.24,0.00015999,2]
[419026006,1774776643414,-1443.37597871,0.00015999,2]
[419026007,1774776643424,-1380419.28345333,0.00016,2]
[419026008,1774776643434,-826576.01571344,0.00016,2]
[419026009,1774776643465,-1265.68204656,0.00016,2]
[419026014,1774776643530,-27346.47523743,0.00016,2]
[419026082,1774777831629,-10000.0,0.000111,2]
[419026083,1774777831639,-305.51,0.00011102,2]
[419026084,1774777831649,-1352.39,0.00011507,2]
[419026085,1774777831658,-200.0,0.00012,2]
[419026086,1774777831667,-225.60975848,0.00012098,30]
[419026087,1774777831676,-300.92962121,0.00012212,2]
[419026088,1774777831685,-340.39,0.0001229,2]
[419026089,1774777831694,-4552.89,0.00012313,2]
[419026090,1774777831703,-300.0,0.00012345,2]
[419026091,1774777831712,-1200.0,0.00012345,2]
[419026092,1774777831721,-16040.66,0.00012346,2]
[419026093,1774777831730,-166.66,0.0001241,2]
[419026094,1774777831739,-150.0,0.00012427,2]
[419026095,1774777831749,-162.57,0.00012499,2]
[419026096,1774777831758,-338.41463773,0.00012658,30]
[419026097,1774777831767,-200.0,0.00012688,2]
[419026098,1774777831776,-151.0,0.00012767,2]
[419026099,1774777831785,-794.0,0.00012878,2]
[419026100,1774777831794,-500.0,0.00012887,2]
[419026101,1774777831803,-506.75169863,0.00012887,2]
[419026102,1774777831812,-166.66,0.00012922,2]
[419026103,1774777831821,-241.00406551,0.00012951,2]
[419026104,1774777831829,-123234.22539061,0.00012961,2]
[419026109,1774777837640,-500.0,0.0001296,2]
[419026110,1774777837649,-208.30574981,0.0001296,2]
[419026111,1774777837660,-151.45207332,0.0001296,2]
[419026112,1774777837670,-342.44259191,0.0001296,2]
[419026113,1774777837679,-500.0,0.0001296,2]
[419026114,1774777837688,-500.0,0.0001296,2]
[419026115,1774777837698,-155.81891369,0.0001296,2]
[419026116,1774777837952,-344.18108631,0.0001296,2]
[419026117,1774777837962,-55.81891369,0.0001296,2]
[419026120,1774777839891,-444.18108631,0.0001296,2]
[419026121,1774777839900,-500.0,0.0001296,2]
[419026122,1774777839910,-500.0,0.0001296,2]
[419026123,1774777839920,-500.0,0.0001296,2]
[419026124,1774777839930,-500.0,0.0001296,2]
[419026125,1774777839940,-500.0,0.0001296,2]
[419026126,1774777839949,-500.0,0.0001296,2]
[419026127,1774777839958,-500.0,0.0001296,2]
[419026128,1774777839968,-500.0,0.0001296,2]
[419026129,1774777839977,-500.0,0.0001296,2]
[419026130,1774777839987,-348.76135554,0.0001296,2]
[419026131,1774777839996,-500.0,0.0001296,2]
[419026132,1774777840006,-500.0,0.0001296,2]
[419026133,1774777840015,-500.0,0.0001296,2]
[419026134,1774777840026,-500.0,0.0001296,2]
[419026135,1774777840036,-500.0,0.0001296,2]
[419026136,1774777840045,-5402.25755815,0.00012961,2]
[419026137,1774777840057,-2371363.51705124,0.00012961,2]
[419026138,1774777840067,-172.54221147,0.00013,2]
[419026139,1774777840077,-248.32852391,0.00013,2]
[419026140,1774777840087,-151.14194588,0.00013,2]
[419026141,1774777840096,-162.21635745,0.00013,2]
[419026142,1774777840106,-152.15691554,0.00013,2]
[419026143,1774777840116,-150.0,0.00013,2]
[419026144,1774777840125,-150.0,0.00013059,2]
[419026145,1774777840135,-11042.6124,0.0001306,2]
[419026146,1774777840144,-1086.68559147,0.0001306,2]
[419026147,1774777840154,-2500.0,0.0001306,2]
[419026148,1774777840163,-505.63728383,0.00013061,2]
[419026149,1774777840172,-154.06346258,0.00013061,2]
[419026150,1774777840182,-7966.10121323,0.00013061,2]
[419026151,1774777840195,-241.00406551,0.0001315,2]
[419026152,1774777840204,-151.0,0.00013152,2]
[419026153,1774777840213,-151.0,0.00013152,2]
[419026154,1774777840222,-151.0,0.00013152,2]
[419026155,1774777840232,-151.0,0.00013152,2]
[419026156,1774777840241,-151.0,0.00013152,2]
[419026157,1774777840251,-151.0,0.00013152,2]
[419026158,1774777840260,-178.50655676,0.00013152,2]
[419026159,1774777840269,-4566.50840311,0.00013159,2]
[419026160,1774777840278,-1079.3194623,0.00013159,3]
[419026161,1774777840288,-183.142,0.00013159,2]
[419026162,1774777840298,-1998.805,0.00013159,2]
[419026163,1774777840307,-1500000.0,0.0001316,2]
[419026164,1774777840316,-1000.0,0.00013161,2]
[419026165,1774777840326,-500.0,0.00013173,2]
[419026166,1774777840336,-500.0,0.00013173,2]
[419026167,1774777840346,-500.0,0.00013173,2]
[419026168,1774777840356,-347.48373868,0.00013173,2]
[419026169,1774777840366,-500.0,0.00013173,2]
[419026170,1774777840375,-500.0,0.00013173,2]
[419026171,1774777840384,-500.0,0.00013173,2]
[419026172,1774777840394,-500.0,0.00013173,2]
[419026173,1774777840403,-500.0,0.00013173,2]
[419026174,1774777840413,-500.0,0.00013173,2]
[419026175,1774777840424,-783.04,0.00013269,2]
[419026176,1774777840434,-7966.10121316,0.00013376,2]
[419026177,1774777840443,-166.66,0.00013434,2]
[419026178,1774777840453,-500.0,0.00013447,2]
[419026179,1774777840463,-505.63728383,0.00013534,2]
[419026180,1774777840472,-420.0,0.00013547,2]
[419026181,1774777840483,-290.28,0.00013553,2]
[419026182,1774777840492,-1680.0,0.00013579,2]
[419026183,1774777840502,-7966.10121316,0.00013692,2]
[419026184,1774777840512,-500.0,0.00013698,2]
[419026185,1774777840522,-500.0,0.00013698,2]
[419026186,1774777840636,-161.59374025,0.00013698,2]
[419026187,1774777840647,-1443.24,0.00013698,2]
[419026188,1774777840657,-1443.24,0.00013698,2]
[419026189,1774777840667,-1443.24,0.00013698,2]
[419026190,1774777840676,-1443.24,0.00013698,2]
[419026191,1774777840685,-1443.24,0.00013698,2]
[419026192,1774777840696,-1443.24,0.00013698,2]
[419026193,1774777840705,-500.0,0.00013698,2]
[419026194,1774777840715,-500.0,0.00013698,2]
[419026195,1774777840724,-500.0,0.00013698,2]
[419026196,1774777840734,-500.0,0.00013698,2]
[419026197,1774777840743,-500.0,0.00013698,2]
[419026198,1774777840752,-532.16065142,0.00013698,2]
[419026199,1774777840761,-354.95,0.00013698,2]
[419026200,1774777840771,-541.09,0.00013698,2]
[419026201,1774777840781,-500.0,0.00013698,2]
[419026202,1774777840790,-500.0,0.00013698,2]
[419026203,1774777840800,-500.0,0.00013698,2]
[419026204,1774777840809,-500.0,0.00013698,2]
[419026205,1774777840818,-500.0,0.00013698,2]
[419026206,1774777840827,-500.0,0.00013698,2]
[419026207,1774777840837,-150.0,0.00013699,2]
[419026208,1774777840847,-150.0,0.00013699,2]
[419026209,1774777840856,-200.0,0.00013699,2]
[419026210,1774777840866,-188.62058068,0.00013699,2]
[419026211,1774777840876,-478.15,0.000137,2]
[419026212,1774777840886,-1407.81,0.000137,2]
[419026213,1774777840895,-1855.3,0.000137,2]
[419026214,1774777840904,-1100.51,0.000137,2]
[419026215,1774777840914,-500.0,0.00013721,2]
[419026216,1774777840923,-1000.0,0.00013721,2]
[419026217,1774777840932,-1000.0,0.00013721,2]
[419026218,1774777840941,-1000.0,0.00013721,2]
[419026219,1774777840950,-499.72769898,0.00013721,2]
[419026220,1774777840960,-1000.0,0.00013721,2]
[419026221,1774777840969,-1000.0,0.00013721,2]
[419026222,1774777840979,-500.0,0.00013721,2]
[419026223,1774777840988,-166.66,0.00013947,2]
[419026224,1774777840998,-150.0,0.00013962,2]
[419026225,1774777841008,-354.95,0.00013972,2]
[419026226,1774777841017,-40790.54077272,0.00014,2]
[419026227,1774777841027,-501.0,0.00014,2]
[419026228,1774777841036,-200.0,0.00014,2]
[419026229,1774777841046,-517.0,0.00014,2]
[419026230,1774777841055,-505.63728383,0.00014007,2]
[419026231,1774777841064,-7966.10121316,0.00014007,2]
[419026232,1774777841073,-162.57,0.00014062,2]
[419026233,1774777841082,-500.0,0.00014115,2]
[419026234,1774777841092,-60000.0,0.00014115,2]
[419026235,1774777841102,-255.0,0.00014169,2]
[419026236,1774777841111,-354.95,0.00014246,2]
[419026237,1774777841120,-1500.0,0.00014268,2]
[419026238,1774777841130,-1500.0,0.00014268,2]
[419026239,1774777841140,-245.04491428,0.00014268,2]
[419026240,1774777841149,-1500.0,0.00014268,2]
[419026241,1774777841159,-196.7418,0.000143,2]
[419026242,1774777841168,-7966.10121316,0.00014323,2]
[419026243,1774777841177,-166.66,0.00014459,2]
[419026244,1774777841186,-160.0,0.00014478,2]
[419026245,1774777841196,-959.8630956,0.00014478,2]
[419026246,1774777841205,-160.0,0.00014478,2]
[419026247,1774777841215,-505.63728383,0.00014481,2]
[419026248,1774777841224,-154.06346257,0.00014481,2]
[419026249,1774777841234,-354.95,0.0001452,2]
[419026250,1774777841243,-1346.0,0.00014562,2]
[419026251,1774777841252,-1045.0,0.00014562,2]
[419026252,1774777841262,-621.0,0.00014562,2]
[419026253,1774777841271,-150.0,0.00014562,2]
[419026254,1774777841281,-1262.0,0.00014562,2]
[419026255,1774777841291,-420.547,0.00014562,2]
[419026256,1774777841300,-3765.0,0.00014562,2]
[419026257,1774777841310,-1443.24,0.00014638,2]
[419026258,1774777841319,-7966.10121316,0.00014638,2]
[419026259,1774777841329,-250.0,0.00014669,2]
[419026260,1774777841338,-354.95222207,0.00014794,2]
[419026261,1774777841348,-1509.58099597,0.00014816,2]
[419026262,1774777841357,-2000.0,0.00014816,2]
[419026263,1774777841367,-2000.0,0.00014816,2]
[419026264,1774777841376,-587.0,0.00014866,2]
[419026265,1774777841386,-172.16887983,0.000149,2]
[419026266,1774777841396,-172.16887982,0.000149,2]
[419026267,1774777841406,-2351.0,0.00014937,2]
[419026268,1774777841416,-505.63728383,0.00014954,2]
[419026269,1774777841427,-7966.10121316,0.00014954,2]
[419026270,1774777841436,-500.0,0.00015,2]
[419026271,1774777841446,-1294.29007037,0.00015017,2]
[419026272,1774777841456,-680.23,0.00015068,2]
[419026273,1774777841465,-549.41954895,0.00015199,2]
[419026274,1774777841474,-500.0,0.00015199,2]
[419026275,1774777841484,-9552.16786547,0.00015199,2]
[419026276,1774777841493,-500.0,0.00015199,2]
[419026277,1774777841503,-500.0,0.00015199,2]
[419026278,1774777841512,-1428.38747117,0.00015199,2]
[419026279,1774777841522,-500.0,0.00015199,2]
[419026280,1774777841531,-500.0,0.00015199,2]
[419026281,1774777841541,-500.0,0.00015199,2]
[419026282,1774777841551,-500.0,0.00015199,2]
[419026283,1774777841560,-500.0,0.00015199,2]
[419026284,1774777841570,-500.0,0.00015199,2]
[419026285,1774777841579,-500.0,0.00015199,2]
[419026286,1774777841589,-500.0,0.00015199,2]
[419026287,1774777841599,-500.0,0.00015199,2]
[419026288,1774777841608,-500.0,0.00015199,2]
[419026289,1774777841618,-352.89483159,0.00015199,2]
[419026290,1774777841627,-500.0,0.00015199,2]
[419026291,1774777841637,-500.0,0.00015199,2]
[419026292,1774777841647,-500.0,0.00015199,2]
[419026293,1774777841657,-500.0,0.00015199,2]
[419026294,1774777841666,-500.0,0.00015199,2]
[419026295,1774777841676,-500.0,0.00015199,2]
[419026296,1774777841686,-500.0,0.00015199,2]
[419026297,1774777841696,-500.0,0.00015199,2]
[419026298,1774777841706,-500.0,0.00015199,2]
[419026299,1774777841716,-500.0,0.00015199,2]
[419026300,1774777841726,-500.0,0.00015199,2]
[419026301,1774777841735,-500.0,0.00015199,2]
[419026302,1774777841745,-500.0,0.00015199,2]
[419026303,1774777841754,-151.0,0.00015199,2]
[419026304,1774777841764,-500.0,0.00015199,2]
[419026305,1774777841774,-500.0,0.00015199,2]
[419026306,1774777841783,-500.0,0.00015199,2]
[419026307,1774777841792,-500.0,0.00015199,2]
[419026308,1774777841802,-500.0,0.00015199,2]
[419026309,1774777841812,-250.0,0.00015199,2]